bitfinex-derivatives/quotes_ETHF0:USTF0_20250331
["timestamp","ask_amount","ask_price","bid_price","bid_amount"]
[1743424731123,9.50881,1816.0,1815.9,2.48658]
[1743424737136,6.30101,1816.0,1815.9,2.48658]
[1743424737934,3.2078,1816.2,1816.1,1.10145]
[1743424739039,2.47764,1816.3,1816.2,1.10139]
[1743424739546,2.47763,1816.3,1816.2,1.10139]
[1743424740031,2.47763,1816.3,1816.2,1.79249]
[1743424740233,1.3763,1816.3,1816.2,1.79249]
[1743424741041,1.10139,1816.2,1816.1,1.10141]
[1743424741640,2.47409,1816.2,1816.1,1.10141]
[1743424744742,2.47409,1816.2,1816.1,1.84401]
[1743424749345,2.47409,1816.2,1815.8,1.1016]
[1743424749346,1.10158,1815.9,1815.8,1.1016]
[1743424749845,1.10164,1815.8,1815.7,2.56054]
[1743424750047,1.10164,1815.8,1815.7,2.5606]
[1743424750247,1.1017,1815.7,1815.6,2.57226446]
[1743424750453,2.532,1815.7,1815.6,2.57226446]
[1743424750646,1.10168,1815.8,1815.7,1.10164]
[1743424750946,2.53198,1815.8,1815.7,1.10164]
[1743424752148,5.73978,1815.8,1815.7,1.10164]
[1743424752349,1.1017,1815.7,1815.6,2.57227446]
[1743424752545,2.532,1815.7,1815.6,0.00825446]
[1743424752743,3.2729,1815.7,1815.6,0.00825446]
[1743424753050,3.2729,1815.7,1815.6,1.11001446]
[1743424753748,3.2729,1815.7,1815.6,1.38445446]
[1743424753950,3.2729,1815.7,1815.6,2.48621446]
[1743424755349,3.2729,1815.7,1815.6,1.38445446]
[1743424755844,3.2729,1815.7,1815.6,0.00825446]
[1743424756045,1.10218,1815.0,1814.9,1.10215]
[1743424756247,1.10218,1815.0,1814.7,0.7238]
[1743424756248,1.10224,1814.8,1814.7,0.7238]
[1743424756546,1.10238,1814.6,1814.5,1.10239]
[1743424756748,1.10233,1814.7,1814.6,1.10233]
[1743424756949,1.3915,1814.7,1814.6,1.10233]
[1743424757143,0.00825446,1814.8,1814.7,1.1023]
[1743424757336,0.00825446,1814.8,1814.7,3.9858]
[1743424758144,0.00825446,1814.8,1814.7,7.1936]
[1743424758742,4.30985,1815.2,1815.1,1.10206]
[1743424758947,3.2078,1815.2,1814.8,1.4531]
[1743424759140,2.2247,1815.1,1814.8,1.4531]
[1743424759337,2.2247,1815.1,1815.0,1.10212]
[1743424759338,3.32679,1815.1,1815.0,1.10212]
[1743424759947,3.32676,1815.1,1815.0,1.10212]
[1743424760147,3.32676,1815.1,1815.0,2.49472]
[1743424760656,1.5047,1815.1,1815.0,2.49472]
[1743424760945,0.00825446,1815.2,1815.1,1.10206]
[1743424761151,5.81427,1815.6,1815.5,1.10182]
[1743424761352,7.46694,1815.6,1815.0,2.7553]
[1743424761653,2.60656,1815.5,1815.4,1.10188]
[1743424761854,1.5047,1815.5,1815.4,1.10188]
[1743424762149,1.10178,1815.6,1815.3,4.14739]
[1743424762347,1.11003446,1815.6,1815.5,1.10177]
[1743424762851,1.11001446,1815.6,1815.5,1.10177]
[1743424763046,0.00825446,1815.6,1815.5,2.55137]
[1743424764852,0.00825446,1815.6,1815.5,5.75917]
[1743424767057,0.00825446,1815.6,1815.5,2.55137]
[1743424767449,1.49285446,1815.6,1815.5,2.55137]
[1743424768647,0.00825446,1815.6,1815.5,2.55137]
[1743424769856,3.2078,1816.1,1815.5,7.1574]
[1743424770054,1.4516,1816.1,1816.0,1.10151]
[1743424770655,1.4516,1816.1,1816.0,3.26241]
[1743424774147,2.55305,1816.1,1816.0,3.26241]
[1743424774349,1.10151,1816.0,1815.9,0.68905446]
[1743424774547,2.49941,1816.0,1815.9,1.10983446]
[1743424775358,2.75421,1815.8,1815.3,3.2078]
[1743424775560,1.10188,1815.5,1815.4,1.10184]
[1743424776252,1.10188,1815.5,1815.4,2.54254]
[1743424776452,1.10188,1815.5,1815.4,1.10188]
[1743424776855,4.30968,1815.5,1815.4,1.10188]
[1743424777048,5.04397,1815.5,1815.4,1.10188]
[1743424777254,1.83617,1815.5,1815.4,1.10188]
[1743424778955,0.7343,1815.5,1815.4,1.10188]
[1743424779259,0.7343,1815.5,1815.3,1.44895446]
[1743424779260,2.49969,1815.6,1815.5,1.02898315]
[1743424779555,1.3979,1815.6,1815.5,1.02898315]
[1743424779761,3.2078,1815.7,1815.6,1.10176]
[1743424779955,4.3095,1815.7,1815.6,1.10176]
[1743424780154,1.5024,1815.8,1815.7,1.1017]
[1743424780363,4.3093,1816.1,1816.0,1.10151]
[1743424781264,1.10158,1816.0,1815.9,1.10154]
[1743424781461,4.30928,1816.1,1816.0,1.10151]
[1743424781655,5.66768,1816.1,1816.0,1.10151]
[1743424782055,2.45988,1816.1,1816.0,1.10151]
[1743424782257,2.45985,1816.1,1816.0,1.10151]
[1743424782760,1.3584,1816.1,1816.0,1.10151]
[1743424783563,0.00825446,1816.2,1816.1,1.10145]
[1743424784357,1.41265446,1816.2,1816.1,1.10145]
[1743424784863,0.00825446,1816.2,1816.1,1.10145]
[1743424785162,0.00825446,1816.2,1816.1,2.56775]
[1743424785355,0.00825446,1816.2,1816.1,5.06775]
[1743424785552,0.6911,1816.9,1816.8,1.10103]
[1743424785756,2.54327,1816.9,1816.8,1.10103]
[1743424785962,0.7512,1816.9,1816.8,1.10103]
[1743424786356,1.10088,1817.1,1817.0,1.10086]
[1743424787048,4.64705446,1817.2,1817.1,1.10085]
[1743424787049,0.00825446,1817.2,1817.1,1.10085]
[1743424788160,0.00825446,1817.2,1817.1,2.47625]
[1743424788460,1.43925446,1817.2,1817.1,2.47625]
[1743424788961,0.00825446,1817.2,1817.1,2.47625]
[1743424789755,5.97,1817.9,1817.3,2.7517]
[1743424789756,3.2078,1817.8,1817.3,2.7517]
[1743424789962,5.77105,1817.8,1817.7,1.10048]
[1743424790357,4.6706,1817.8,1817.7,1.10048]
[1743424791566,5.77102,1817.8,1817.7,1.10048]
[1743424791964,1.10057,1817.6,1817.5,1.10058]
[1743424792466,4.30837,1817.6,1817.5,1.10058]
[1743424794169,5.76357,1817.6,1817.5,1.10058]
[1743424794472,1.10068,1817.4,1817.3,1.10068]
[1743424794670,1.10068,1817.4,1817.2,0.6806]
[1743424794671,1.10066,1817.5,1817.4,1.10065]
[1743424794970,1.10073,1817.3,1817.2,2.55966]
[1743424795964,1.10073,1817.3,1817.2,1.10076]
[1743424796373,1.10075,1817.3,1817.2,1.10073]
[1743424796673,4.30853,1817.4,1817.3,1.10073]
[1743424797062,3.2078,1817.4,1817.3,1.10073]
[1743424797273,4.30847,1817.4,1817.3,1.10073]
[1743424797865,4.30847,1817.4,1817.1,1.4496]
[1743424797866,1.10076,1817.3,1817.2,1.10074]
[1743424798169,4.30852,1817.4,1817.3,1.10073]
[1743424798764,1.10075,1817.3,1817.2,1.10074]
[1743424799072,1.10075,1817.3,1817.2,2.55034]
[1743424799268,4.3085,1817.4,1817.3,1.10073]
[1743424800271,3.2078,1817.4,1817.3,1.10073]
[1743424800471,3.2078,1817.4,1817.3,1.85403]
[1743424800668,4.30847,1817.4,1817.3,1.85403]
[1743424800975,1.10073,1817.3,1817.2,2.55038]
[1743424801269,4.30842,1817.5,1817.4,1.10067]
[1743424801762,3.2078,1817.5,1817.4,1.10067]
[1743424801968,1.10056,1817.6,1817.5,1.10061]
[1743424802772,4.30831,1817.7,1817.6,1.10055]
[1743424803872,1.10055,1817.6,1817.5,2.53875]
[1743424805078,4.30834,1817.7,1817.6,1.10055]
[1743424805377,4.30834,1817.7,1817.6,2.51615]
[1743424805679,3.2078,1817.7,1817.6,2.51615]
[1743424805870,0.00825446,1817.9,1817.8,1.10042]
[1743424806379,1.10861446,1817.9,1817.8,1.10042]
[1743424807173,0.00825446,1817.9,1817.8,1.10042]
[1743424807476,0.00825446,1817.9,1817.8,3.90562]
[1743424808077,3.2078,1818.4,1818.3,1.10012]
[1743424808579,4.5936,1818.9,1818.7,1.09985]
[1743424808776,4.5936,1818.9,1818.8,1.09982]
[1743424809076,2.74912,1819.1,1818.4,1.4577]
[1743424809077,4.30748,1819.1,1818.7,2.7497]
[1743424809276,4.30729,1819.4,1819.2,1.09954]
[1743424809481,0.00825446,1819.1,1819.0,1.0997]
[1743424810680,0.00825446,1819.1,1819.0,2.5574]
[1743424811179,1.10789446,1819.1,1819.0,2.5574]
[1743424811479,0.00825446,1819.1,1819.0,1.0997]
[1743424813584,1.0997,1819.0,1818.9,1.4708]
[1743424813783,2.5481,1819.0,1818.9,1.4708]
[1743424813975,1.4484,1819.0,1818.7,0.00825446]
[1743424814177,1.09982,1818.8,1818.7,0.00825446]
[1743424814485,1.09982,1818.8,1818.7,1.48205446]
[1743424814879,2.57622,1818.8,1818.7,1.48205446]
[1743424815580,1.10031,1818.0,1817.9,3.2078]
[1743424815774,3.2078,1818.0,1817.7,0.7171]
[1743424815978,1.10042,1817.8,1817.7,1.81756]
[1743424816482,3.2078,1818.0,1817.7,1.81756]
[1743424816683,1.10048,1817.7,1817.6,5.04177446]
[1743424816983,1.10047,1817.8,1817.6,3.94125446]
[1743424817181,1.10048,1817.7,1817.6,5.04176446]
[1743424817382,1.10048,1817.7,1817.6,0.00825446]
[1743424817885,1.10048,1817.7,1817.6,1.10880446]
[1743424818087,1.10048,1817.7,1817.6,0.00825446]
[1743424818384,4.30828,1817.7,1817.6,0.00825446]
[1743424818584,1.10048,1817.7,1817.6,0.00825446]
[1743424818776,4.30828,1817.7,1817.6,0.00825446]
[1743424818979,4.30828,1817.7,1817.6,4.46e-06]
[1743424820483,6.80828,1817.7,1817.6,4.46e-06]
[1743424820683,12.77828,1817.7,1817.6,4.46e-06]
[1743424821179,1.10103,1816.8,1816.7,1.3846]
[1743424822483,1.5,1816.9,1816.6,1.44055446]
[1743424822484,1.10109,1816.7,1816.6,0.00825446]
[1743424822784,2.60109,1816.7,1816.6,0.00825446]
[1743424823682,2.75317,1816.5,1816.0,2.53377]
[1743424823881,1.10139,1816.2,1816.1,1.4284]
[1743424824387,1.10164,1815.8,1815.7,1.10165]
[1743424824587,1.10161,1815.9,1815.7,1.10164]
[1743424824781,1.10158,1815.9,1815.8,1.4284]
[1743424825289,4.30938,1815.9,1815.8,1.4284]
[1743424825487,1.10158,1815.9,1815.8,1.4284]
[1743424825686,1.38335446,1816.0,1815.9,1.10158]
[1743424825687,0.00825446,1816.0,1815.9,1.10158]
[1743424826084,4.30916,1816.3,1816.2,1.10139]
[1743424826697,1.1014,1816.2,1816.1,1.10141]
[1743424827683,4.31743446,1816.3,1816.2,1.10139]
[1743424828085,1.10963446,1816.3,1816.2,1.10139]
[1743424828481,0.00825446,1816.3,1816.2,1.10139]
[1743424828692,1.10118,1816.6,1816.5,1.10118]
[1743424828893,1.10117,1816.6,1816.5,1.10117]
[1743424829391,1.10123,1816.5,1816.4,1.10123]
[1743424829592,1.10123,1816.5,1816.4,2.58113]
[1743424829996,0.00825446,1816.6,1816.5,1.10121]
[1743424830292,0.00825446,1816.6,1816.5,2.58111]
[1743424830688,1.101,1816.9,1816.8,1.10103]
[1743424830895,3.2078,1817.2,1816.7,2.75265]
[1743424831090,4.6261,1817.2,1816.8,2.75255]
[1743424831290,1.10092,1817.0,1816.9,1.4799]
[1743424832586,1.10092,1817.0,1816.9,2.58087]
[1743424832789,0.00825446,1817.1,1817.0,1.10091]
[1743424833400,1.10091,1817.0,1816.9,2.58083]
[1743424833596,1.10914446,1817.1,1817.0,1.10091]
[1743424833991,0.00825446,1817.1,1817.0,1.10091]
[1743424834201,0.00825446,1817.1,1817.0,2.49761]
[1743424834394,1.10910446,1817.1,1817.0,2.49761]
[1743424834792,0.00825446,1817.1,1817.0,2.49761]
[1743424835896,0.00825446,1817.1,1817.0,3.24191]
[1743424837095,1.10910446,1817.1,1817.0,3.24191]
[1743424837401,1.10910446,1817.1,1817.0,2.49761]
[1743424838298,1.10097,1816.9,1816.8,0.00825446]
[1743424838492,4.30877,1816.9,1816.8,0.00825446]
[1743424838691,1.10121,1816.5,1816.4,1.10124]
[1743424839098,1.10121,1816.5,1816.4,2.51484]
[1743424839406,2.4787,1816.6,1816.5,1.10121]
[1743424839597,2.4787,1816.6,1816.5,2.51481]
[1743424839994,1.10121,1816.5,1816.4,0.00825446]
[1743424840196,5.68651,1816.5,1816.4,0.00825446]
[1743424840892,2.75343,1816.3,1815.8,1.417]
[1743424841205,3.2078,1816.3,1816.2,1.10139]
[1743424841500,3.2078,1816.5,1816.0,2.75379]
[1743424841806,1.10129,1816.4,1816.3,1.10131]
[1743424842004,7.33812,1816.7,1816.3,1.427]
[1743424842302,1.10123,1816.5,1816.4,1.10124]
[1743424842500,7.33812,1816.7,1816.3,1.427]
[1743424842708,1.10127,1816.4,1816.3,2.52827]
[1743424843096,1.10125,1816.5,1816.4,1.10125]
[1743424844693,4.5853,1816.7,1816.3,2.1528]
[1743424844992,6.65844,1817.0,1816.4,2.75317]
[1743424845199,1.10106,1816.8,1816.5,2.75303]
[1743424845401,1.10106,1816.8,1816.7,1.10105]
[1743424846205,1.10109,1816.7,1816.6,2.48411]
[1743424846402,1.10109,1816.7,1816.6,1.383]
[1743424846602,1.10121,1816.5,1816.4,1.84154]
[1743424846802,1.10121,1816.5,1816.4,3.22454]
[1743424847099,1.10121,1816.5,1816.4,2.1233]
[1743424847403,1.10133,1816.3,1816.2,3.21605446]
[1743424847595,1.10133,1816.3,1816.2,4.70135446]
[1743424847801,1.10133,1816.3,1816.2,5.80274446]
[1743424848895,2.571,1816.4,1816.3,1.10133]
[1743424849099,4.30898,1816.6,1816.5,1.10121]
[1743424850102,1.10118,1816.6,1816.5,1.10121]
[1743424852202,1.10121,1816.5,1816.4,2.58652]
[1743424852499,7.4301,1816.8,1816.3,1.10131]
[1743424852500,1.10133,1816.4,1816.3,1.10131]
[1743424853304,2.57743,1816.5,1816.4,1.10127]
[1743424853508,1.4762,1816.5,1816.4,1.10127]
[1743424855609,2.57741,1816.5,1816.4,1.10127]
[1743424856412,1.10133,1816.3,1816.2,1.40515446]
[1743424856912,1.10133,1816.3,1816.2,2.50654446]
[1743424858010,1.10133,1816.3,1816.2,1.40515446]
[1743424858408,1.10133,1816.3,1816.2,2.50654446]
[1743424858810,1.10133,1816.3,1816.2,1.40515446]
[1743424859211,1.10133,1816.3,1816.2,2.50654446]
[1743424860213,1.10133,1816.3,1816.2,1.40515446]
[1743424860513,4.30913,1816.3,1816.2,0.00825446]
[1743424861106,5.7078,1816.3,1815.8,1.3685]
[1743424861309,5.7078,1816.3,1815.6,1.4224]
[1743424861310,1.1017,1815.7,1815.6,1.1017]
[1743424861509,1.10168,1815.8,1815.7,1.10165]
[1743424861810,2.48628,1815.8,1815.7,1.10165]
[1743424862806,2.48628,1815.8,1815.7,2.54325]
[1743424863015,1.1017,1815.7,1815.6,0.00825446]
[1743424863214,1.4412,1815.7,1815.6,1.10996446]
[1743424863410,1.10169,1815.8,1815.7,1.1017]
[1743424863711,1.10989446,1815.9,1815.8,1.10164]
[1743424863916,1.10164,1815.8,1815.7,2.54326]
[1743424864412,1.1017,1815.7,1815.6,1.11001446]
[1743424864616,2.5429,1815.7,1815.6,1.11001446]
[1743424864811,1.4412,1815.7,1815.6,1.11001446]
[1743424865008,2.54289,1815.8,1815.7,1.1017]
[1743424865210,1.10169,1815.8,1815.7,2.5433]
[1743424866213,0.00825446,1815.9,1815.8,1.10164]
[1743424867322,1.10983446,1815.9,1815.8,1.10164]
[1743424868120,0.00825446,1815.9,1815.8,1.10164]
[1743424869021,1.10983446,1815.9,1815.8,1.10164]
[1743424869222,0.00825446,1815.9,1815.8,1.10164]
[1743424870415,1.10983446,1815.9,1815.8,1.10164]
[1743424870923,0.00825446,1815.9,1815.8,1.10164]
[1743424872324,4.16167,1816.3,1815.8,1.10164]
[1743424872325,3.2078,1816.4,1816.1,1.10145]
[1743424872520,4.5697,1816.6,1816.3,2.75331]
[1743424872714,4.5697,1816.6,1816.5,1.10121]
[1743424873123,1.3619,1816.6,1816.5,1.10121]
[1743424873319,1.3619,1816.6,1816.5,2.52551]
[1743424873722,0.00825446,1816.7,1816.6,1.10115]
[1743424874824,0.00825446,1816.7,1816.6,4.30895]
[1743424875727,1.10082,1817.2,1817.1,1.10085]
[1743424875925,1.3805,1817.2,1816.9,1.4084]
[1743424876133,1.10085,1817.1,1817.0,1.10089]
[1743424876330,2.48134,1817.2,1817.0,1.10089]
[1743424876530,1.10085,1817.1,1816.9,2.50933]
[1743424876725,1.10085,1817.1,1816.6,5.96066]
[1743424876726,2.48143,1817.0,1816.6,5.96066]
[1743424876924,1.3805,1817.0,1816.9,1.10097]
[1743424879527,2.48141,1817.0,1816.9,1.10097]
[1743424879726,1.3805,1817.0,1816.9,1.10097]
[1743424880029,1.10097,1816.9,1816.8,0.00825446]
[1743424880225,5.03447,1816.9,1816.8,0.00825446]
[1743424880732,1.10115,1816.6,1816.5,1.10118]
[1743424881034,4.30895,1816.6,1816.5,1.10118]
[1743424881438,1.10121,1816.5,1816.4,2.55903]
[1743424881734,2.54098,1816.5,1816.4,1.10127]
[1743424881931,1.4397,1816.5,1816.3,0.00825446]
[1743424882233,4.30907,1816.4,1816.3,1.10953446]
[1743424882832,0.7257,1816.9,1816.3,0.00825446]
[1743424883133,3.2078,1817.0,1816.9,1.10097]
[1743424884036,1.44795446,1817.2,1817.1,1.10085]
[1743424885231,0.00825446,1817.2,1817.1,1.10085]
[1743424885434,0.00825446,1817.2,1817.1,4.30865]
[1743424887233,3.2078,1817.7,1817.5,1.10045]
[1743424887442,2.51614,1817.6,1817.5,1.10045]
[1743424888136,1.1005,1817.5,1817.4,2.49307446]
[1743424888438,2.5162,1817.5,1817.4,2.49307446]
[1743424889536,2.5162,1817.5,1817.4,2.49311446]
[1743424890733,2.5162,1817.5,1817.4,0.00825446]
[1743424891527,2.5162,1817.5,1817.4,1.10881446]
[1743424891731,2.5162,1817.5,1817.4,0.00825446]
[1743424891927,2.5162,1817.5,1817.4,1.10881446]
[1743424892342,1.4157,1817.5,1817.4,1.10881446]
[1743424892935,2.5162,1817.5,1817.4,1.10881446]
[1743424893639,2.5162,1817.5,1817.4,0.00825446]
[1743424894042,2.5162,1817.5,1817.4,1.10881446]
[1743424898431,0.00825446,1817.7,1817.6,1.10044]
[1743424899437,3.2078,1818.3,1818.1,1.1001]
[1743424899632,1.3926,1818.1,1818.0,2.45959]
[1743424899833,2.49273,1818.1,1818.0,2.45959]
[1743424901541,2.49273,1818.1,1818.0,1.3594]
[1743424901738,1.3926,1818.1,1817.7,3.9127]
[1743424901939,1.10031,1817.9,1817.8,1.10027]
[1743424902544,1.10031,1817.8,1817.7,4.30812]
[1743424904448,1.10031,1817.8,1817.7,1.10032]
[1743424904642,1.10037,1817.7,1817.6,1.4208]
[1743424904847,0.6831,1817.8,1817.4,3.45885446]
[1743424905045,1.10044,1817.7,1817.6,2.5212]
[1743424905246,1.10037,1817.7,1817.6,2.5212]
[1743424905445,1.78346,1817.8,1817.7,1.10037]
[1743424905644,1.78346,1817.8,1817.6,1.4208]
[1743424905645,1.10037,1817.7,1817.6,2.5212]
[1743424905842,1.78346,1817.8,1817.7,1.10037]
[1743424906239,1.10037,1817.7,1817.6,2.52119]
[1743424907651,0.6831,1817.8,1817.7,1.10037]
[1743424907853,1.78347,1817.8,1817.7,2.52807]
[1743424910551,1.78341,1817.8,1817.7,2.52807]
[1743424910845,1.10045,1817.7,1817.6,1.10039]
[1743424911046,1.10044,1817.6,1817.5,1.4831]
[1743424911245,1.1005,1817.5,1817.4,4.31659446]
[1743424911451,1.1005,1817.5,1817.4,5.79969446]
[1743424911851,1.10042,1817.7,1817.6,1.10037]
[1743424912249,1.10042,1817.7,1817.6,2.60657]
[1743424912848,0.6831,1817.8,1817.7,1.10037]
[1743424913052,1.10031,1817.9,1817.8,1.10025]
[1743424914045,1.10023,1818.0,1817.9,1.10019]
[1743424914342,4.30797,1818.1,1818.0,1.10019]
[1743424914752,1.10017,1818.1,1818.0,1.10019]
[1743424914954,1.10834446,1818.2,1818.1,1.10013]
[1743424915545,0.00825446,1818.2,1818.1,1.10013]
[1743424916153,1.10832446,1818.2,1818.1,1.10013]
[1743424916550,0.00825446,1818.2,1818.1,1.10013]
[1743424916757,1.10832446,1818.2,1818.1,1.10013]
[1743424917451,0.00825446,1818.2,1818.1,1.10013]
[1743424918152,0.00825446,1818.2,1818.1,2.48023]
[1743424918753,1.10832446,1818.2,1818.1,2.48023]
[1743424918946,0.00825446,1818.2,1818.1,2.48023]
[1743424920554,1.10832446,1818.2,1818.1,2.48023]
[1743424921661,0.00825446,1818.2,1818.1,1.10013]
[1743424922751,1.09971,1818.9,1818.8,1.09968]
[1743424923061,1.0998,1818.7,1818.6,1.09977]
[1743424923259,1.0998,1818.7,1818.6,2.55127]
[1743424923453,1.09976,1818.8,1818.7,1.09972]
[1743424923654,1.4177,1818.8,1818.7,1.09972]
[1743424923862,1.4177,1818.8,1818.6,1.45975446]
[1743424924061,2.51744,1818.8,1818.7,1.09977]
[1743424924364,1.09977,1818.7,1818.6,1.45975446]
[1743424924549,2.54717,1818.7,1818.6,1.45975446]
[1743424925160,5.75497,1818.7,1818.6,2.55958446]
[1743424925563,5.75497,1818.7,1818.6,1.45975446]
[1743424925754,5.75497,1818.7,1818.6,0.00825446]
[1743424925959,5.75497,1818.7,1818.2,3.2078]
[1743424925960,1.10001,1818.3,1818.2,1.10004]
[1743424926263,1.1,1818.4,1818.3,1.09998]
[1743424926459,1.4474,1818.4,1818.3,1.09998]
[1743424926661,0.6995,1818.6,1818.5,1.09989]
[1743424927060,3.2078,1818.7,1818.6,1.09983]
[1743424927365,1.09973,1818.8,1818.7,1.09973]
[1743424927556,1.1050563,1818.9,1818.8,1.09971]
[1743424927953,1.3949863,1818.9,1818.8,1.09971]
[1743424928558,0.0053863,1818.9,1818.8,1.09971]
[1743424928762,0.0053863,1818.9,1818.8,1.82751]
[1743424929665,1.3896,1819.3,1819.2,1.09947]
[1743424929861,2.48901,1819.3,1819.2,1.09947]
[1743424930062,1.3896,1819.3,1819.1,1.4856]
[1743424930269,1.3896,1819.3,1819.2,1.09947]
[1743424930661,2.48905,1819.3,1819.1,1.4856]
[1743424930964,1.09947,1819.2,1819.1,1.4856]
[1743424931165,2.46887,1819.2,1819.1,1.4856]
[1743424931664,1.09965,1818.9,1818.8,0.7278]
[1743424931866,7.32593,1819.2,1818.7,1.82104]
[1743424932060,1.09971,1818.8,1818.7,1.82104]
[1743424932261,1.09971,1818.8,1818.7,0.7213]
[1743424932562,1.09983,1818.6,1818.5,1.82449]
[1743424932769,1.0998,1818.7,1818.5,0.7246]
[1743424933066,1.0998,1818.7,1818.6,1.4715]
[1743424933368,1.09985,1818.6,1818.4,0.00825446]
[1743424933564,1.09985,1818.6,1818.5,1.4715]
[1743424933769,3.2078,1818.8,1818.5,1.4715]
[1743424933963,1.09983,1818.6,1818.5,2.57136]
[1743424934169,1.09979,1818.7,1818.5,2.57136]
[1743424934471,3.2078,1818.8,1818.5,1.4715]
[1743424934662,1.0998,1818.7,1818.6,1.09983]
[1743424934970,3.2078,1818.8,1818.7,1.09977]
[1743424934971,1.09975,1818.8,1818.7,1.09977]
[1743424935471,3.2078,1819.0,1818.5,1.4715]
[1743424935769,3.2078,1819.0,1818.7,1.09975]
[1743424935968,1.09965,1818.9,1818.8,1.3822]
[1743424937674,5.95684,1819.0,1818.7,1.09976]
[1743424937969,3.2078,1819.0,1818.5,4.13189]
[1743424938171,1.09972,1818.8,1818.7,1.09973]
[1743424938365,3.2078,1819.0,1818.9,1.09965]
[1743424938567,3.2078,1819.0,1818.8,1.3822]
[1743424938864,1.09965,1818.9,1818.8,2.48185]
[1743424939257,3.2078,1819.0,1818.8,1.3822]
[1743424939463,4.30742,1819.0,1818.9,1.4874]
[1743424940263,4.30742,1819.0,1818.9,2.58705]
[1743424940664,4.30742,1819.0,1818.9,1.4874]
[1743424940863,4.30742,1819.0,1818.9,2.58705]
[1743424941059,3.2078,1819.0,1818.9,2.58705]
[1743424941265,4.30722,1819.3,1819.2,1.09947]
[1743424941570,1.09953,1819.1,1819.0,1.09954]
[1743424941770,1.40615446,1819.4,1818.9,2.58701]
[1743424941771,1.09959,1819.0,1818.9,2.58701]
[1743424941960,1.09956,1819.1,1819.0,1.09957]
[1743424942160,3.2078,1819.3,1818.9,1.4874]
[1743424942364,1.09943,1819.3,1819.2,1.09947]
[1743424942670,1.09943,1819.3,1819.2,1.09944]
[1743424942971,0.68685446,1819.4,1819.3,1.09941]
[1743424942972,1.78623446,1819.4,1819.3,1.09941]
[1743424943169,0.68685446,1819.4,1819.1,4.1747]
[1743424943468,0.68685446,1819.4,1819.0,5.9567]
[1743424943469,1.78624446,1819.4,1819.3,1.09941]
[1743424943866,1.09947,1819.2,1819.1,1.0995]
[1743424944073,1.09953,1819.1,1819.0,4.30735]
[1743424944271,1.09952,1819.2,1819.1,1.09952]
[1743424945067,1.09947,1819.2,1818.9,1.4259]
[1743424945273,3.2078,1819.3,1819.0,1.09954]
[1743424945466,1.09951,1819.2,1819.1,1.09952]
[1743424945667,3.2078,1819.3,1818.9,4.17501]
[1743424945867,1.0995,1819.2,1819.1,1.09951]
[1743424946064,3.2078,1819.3,1819.2,1.09947]
[1743424946462,4.30721,1819.3,1819.2,1.09947]
[1743424946662,3.2078,1819.3,1819.2,1.09947]
[1743424946879,0.00825446,1819.4,1819.3,1.09941]
[1743424947576,1.09943,1819.3,1819.0,5.95677]
[1743424947771,1.09947,1819.2,1819.1,2.58359]
[1743424948175,0.00825446,1819.4,1819.3,1.09941]
[1743424948678,0.00825446,1819.4,1819.2,1.4433]
[1743424948980,1.09941,1819.3,1819.2,2.54272]
[1743424950374,1.09951,1819.2,1819.1,1.0995]
[1743424950575,1.09961,1819.0,1818.9,1.09958]
[1743424950775,1.09955,1819.1,1819.0,1.09952]
[1743424950972,3.2078,1819.3,1819.2,1.09947]
[1743424950973,4.30725,1819.3,1819.2,1.09947]
[1743424951167,3.2078,1819.3,1818.9,4.19229]
[1743424951374,1.09955,1819.1,1819.0,1.09952]
[1743424951570,1.09955,1819.1,1819.0,1.09953]
[1743424951775,1.09961,1819.0,1818.9,1.0996]
[1743424951971,1.09959,1819.1,1819.0,1.09957]
[1743424952171,1.09956,1819.1,1819.0,1.09955]
[1743424952371,2.48393,1819.2,1819.1,1.09953]
[1743424952778,1.3844,1819.2,1819.1,1.09953]
[1743424952979,2.48387,1819.2,1819.1,1.09953]
[1743424954976,1.3844,1819.2,1819.1,1.09953]
[1743424955179,1.09945,1819.3,1819.2,1.09947]
[1743424956078,0.00825446,1819.4,1819.3,1.09941]
[1743424956377,0.00825446,1819.4,1819.3,2.55011]
[1743424956980,1.10760446,1819.4,1819.3,2.55011]
[1743424957175,1.10760446,1819.4,1819.3,1.4507]
[1743424957176,2.51200446,1819.4,1819.3,1.4507]
[1743424957482,1.09941,1819.3,1819.2,1.78286]
[1743424957683,1.09957,1819.1,1819.0,1.09955]
[1743424957981,1.09957,1819.1,1819.0,2.45755]
[1743424958678,1.4777,1819.2,1819.1,1.09953]
[1743424958879,2.57717,1819.2,1819.1,2.45753]
[1743424959178,2.57717,1819.2,1819.1,1.358]
[1743424959481,2.57717,1819.2,1819.1,2.45753]
[1743424959779,1.4777,1819.2,1819.1,2.45753]
[1743424960081,1.09944,1819.3,1819.2,1.09941]
[1743424960281,2.57714,1819.3,1819.2,2.45741]
[1743424960581,1.10760446,1819.4,1819.3,1.09941]
[1743424960882,0.00825446,1819.4,1819.3,2.52881]
[1743424961780,0.00825446,1819.4,1819.3,3.98521]
[1743424962178,1.10760446,1819.4,1819.3,3.98521]
[1743424962379,0.00825446,1819.4,1819.3,3.98521]
[1743424965583,1.10760446,1819.4,1819.3,1.4564]
[1743424965787,1.09941,1819.3,1819.2,1.09944]
[1743424965982,2.51871,1819.3,1819.2,1.09944]
[1743424966182,2.51871,1819.3,1819.1,1.4385]
[1743424966183,1.09947,1819.2,1819.1,2.53798]
[1743424966382,2.51877,1819.2,1819.1,2.53798]
[1743424966587,0.00825446,1819.4,1819.3,1.09941]
[1743424966887,2.61460446,1819.4,1819.3,1.09941]
[1743424968896,0.00825446,1819.4,1819.3,1.09941]